[Event "DEN-chT XtraCon 2018-19"]
[Site "Denmark"]
[Date "2018.12.09"]
[Round "4"]
[White "Igor Teplyi, SK."]
[Black "Hagen, Andreas Skytte"]
[Result "1/2-1/2"]
[ECO "A05"]
[WhiteElo "1968"]
[BlackElo "2368"]
[Annotator "NA"]
[PlyCount "67"]
[EventDate "2018.10.27"]
[EventType "team-tourn"]
[EventCountry "DEN"]
[SourceTitle "playchess.com"]
[Source "ChessBase"]
[SourceQuality "1"]
[TimeControl "40/5400+30:1800+30"]

1. Nf3 {[%emt 0:00:00]} Nf6 {[%emt 0:00:00]} 2. g3 {[%emt 0:00:00]} g6 {[%emt 0:00:00]} 3. Bg2 {[%emt 0:00:00]} Bg7 {[%emt 0:00:00]} 4. O-O {[%emt 0:00:00]} O-O {[%emt 0:00:00]} 5. d4 {[%emt 0:00:00]} d6 {[%emt 0:00:06]} 6. a4 {[%emt 0:00:06]} c6 {[%emt 0:00:39]} 7. a5 {[%emt 0:00:49]} Qc7 {[%emt 0:00:15]} 8. c4 {[%emt 0:02:51]} Na6 {[%emt 0:00:11]} 9. Nc3 {[%emt 0:00:42]} e5 {[%emt 0:00:23]} 10. e4 {[%emt 0:06:10]} exd4 {[%emt 0:30:18]} 11. Nxd4 {[%emt 0:00:19]} Ng4 {[%emt 0:02:18]} 12. h3 {[%emt 0:31:35]} Ne5 {[%emt 0:00:57]} 13. Qe2 {[%emt 0:00:48]} Nc5 {[%emt 0:10:40]} 14. Rd1 {[%emt 0:01:14]} Re8 {[%emt 0:07:57]} 15. Be3 {[%emt 0:01:05]} Be6 {[%emt 0:04:28]} 16. Nxe6 {[%emt 0:04:21]} Rxe6 {[%emt 0:00:25]} 17. Ra3 {[%emt 0:14:11]} Ned7 {[%emt 0:08:02]} 18. b4 {[%emt 0:13:45]} Bxc3 {[%emt 0:02:18]} 19. bxc5 {[%emt 0:00:49]} Bb4 {[%emt 0:04:25]} 20. cxd6 {[%emt 0:00:07]} Bxd6 {[%emt 0:05:45]} 21. Rad3 {[%emt 0:05:57]} Ne5 {[%emt 0:00:53]} 22. c5 {[%emt 0:01:22]} Bf8 {[%emt 0:08:57]} 23. R3d2 {[%emt 0:00:16]} Qxa5 {[%emt 0:01:02]} 24. f4 {[%emt 0:01:21]} Bxc5 {[%emt 0:00:05]} 25. fxe5 {[%emt 0:00:06]} Bxe3+ {[%emt 0:04:46]} 26. Qxe3 {[%emt 0:00:08]} Qxe5 {[%emt 0:02:02]} 27. Rd7 {[%emt 0:08:35]} Re7 {[%emt 0:01:19]} 28. Qa3 {[%emt 0:00:53]} Rae8 {[%emt 0:02:08]} 29. Qxa7 {[%emt 0:02:38]} Qxg3 {[%emt 0:02:24]} 30. Qxb7 {[%emt 0:01:13]} Rxd7 {[%emt 0:00:39]} 31. Qxd7 {[%emt 0:00:38]} Rxe4 {[%emt 0:00:34]} 32. Qxc6 {[%emt 0:00:32]} Re1+ {[%emt 0:00:10]} 33. Rxe1 {[%emt 0:00:04]} Qxe1+ {[%emt 0:00:05]} 34. Kh2 {[%emt 0:00:00]} 1/2-1/2

[Event "DEN-chT XtraCon 2018-19"]
[Site "Denmark"]
[Date "2018.12.09"]
[Round "4"]
[White "Andersen, Bjarne Hjorth"]
[Black "Radovic, Slobodan"]
[Result "1/2-1/2"]
[ECO "B00"]
[WhiteElo "1928"]
[BlackElo "1553"]
[Annotator "NA"]
[PlyCount "82"]
[EventDate "2018.10.27"]
[EventType "team-tourn"]
[EventCountry "DEN"]
[SourceTitle "playchess.com"]
[Source "ChessBase"]
[SourceQuality "1"]
[TimeControl "40/5400+30:1800+30"]

1. e4 {[%emt 0:00:00]} d6 {[%emt 0:00:00]} 2. d4 {[%emt 0:00:00]} f5 {[%emt 0:00:36]} 3. Nc3 {[%emt 0:05:27]} Nf6 {[%emt 0:02:04]} 4. Bd3 {[%emt 0:00:12]} fxe4 {[%emt 0:02:47]} 5. Nxe4 {[%emt 0:00:19]} Nc6 {[%emt 0:01:36]} 6. Nxf6+ {[%emt 0:03:27]} exf6 {[%emt 0:06:00]} 7. Qh5+ {[%emt 0:01:43]} Ke7 {[%emt 0:00:58]} 8. Qe2+ {[%emt 0:17:39]} Kf7 {[%emt 0:07:09]} 9. c3 {[%emt 0:00:50]} g6 {[%emt 0:03:51]} 10. Nf3 {[%emt 0:02:38]} Bg7 {[%emt 0:01:30]} 11. O-O {[%emt 0:01:59]} Re8 {[%emt 0:04:11]} 12. Be3 {[%emt 0:00:46]} Ne7 {[%emt 0:01:15]} 13. Rae1 {[%emt 0:03:39]} Bf5 {[%emt 0:00:54]} 14. Bc4+ {[%emt 0:04:32]} d5 {[%emt 0:01:11]} 15. Bb3 {[%emt 0:02:16]} c6 {[%emt 0:00:03]} 16. Qd2 {[%emt 0:01:12]} g5 {[%emt 0:01:38]} 17. h4 {[%emt 0:06:00]} g4 {[%emt 0:00:46]} 18. Nh2 {[%emt 0:00:15]} h5 {[%emt 0:00:13]} 19. g3 {[%emt 0:04:02]} Bg6 {[%emt 0:05:18]} 20. Bf4 {[%emt 0:03:14]} Qd7 {[%emt 0:01:20]} 21. Re2 {[%emt 0:02:12]} Nf5 {[%emt 0:00:40]} 22. Rfe1 {[%emt 0:00:25]} Rxe2 {[%emt 0:00:02]} 23. Rxe2 {[%emt 0:00:11]} Re8 {[%emt 0:00:04]} 24. Nf1 {[%emt 0:04:12]} Rxe2 {[%emt 0:00:32]} 25. Qxe2 {[%emt 0:00:08]} Qe6 {[%emt 0:01:15]} 26. Qd2 {[%emt 0:04:24]} Nd6 {[%emt 0:08:21]} 27. Bxd6 {[%emt 0:03:27]} Qxd6 {[%emt 0:00:50]} 28. Bc2 {[%emt 0:00:06]} Qe6 {[%emt 0:06:35]} 29. Ne3 {[%emt 0:03:14]} Bh6 {[%emt 0:01:29]} 30. Bxg6+ {[%emt 0:01:18]} Kxg6 {[%emt 0:00:04]} 31. Qd3+ {[%emt 0:03:09]} Qe4 {[%emt 0:01:47]} 32. Qxe4+ {[%emt 0:03:45]} dxe4 {[%emt 0:00:02]} 33. Nc4 {[%emt 0:00:27]} b6 {[%emt 0:02:21]} 34. b3 {[%emt 0:01:23]} Bf8 {[%emt 0:03:41]} 35. Kf1 {[%emt 0:01:14]} Kf5 {[%emt 0:01:44]} 36. Ne3+ {[%emt 0:01:35]} Ke6 {[%emt 0:00:58]} 37. c4 {[%emt 0:00:13]} f5 {[%emt 0:07:19]} 38. Ke2 {[%emt 0:01:29]} Bg7 {[%emt 0:04:55]} 39. d5+ {[%emt 0:02:28]} cxd5 {[%emt 0:00:09]} 40. cxd5+ {[%emt 0:00:06]} Ke5 {[%emt 0:00:36]} 41. d6 {[%emt 0:30:16]} Bf6 {[%emt 0:31:17]} 1/2-1/2

[Event "DEN-chT XtraCon 2018-19"]
[Site "Denmark"]
[Date "2018.12.09"]
[Round "4"]
[White "Sorensen, Jens Kristian"]
[Black "Hestehauge, Klaus"]
[Result "1/2-1/2"]
[ECO "A51"]
[WhiteElo "1908"]
[BlackElo "1928"]
[Annotator "NA"]
[PlyCount "40"]
[EventDate "2018.10.27"]
[EventType "team-tourn"]
[EventCountry "DEN"]
[SourceTitle "playchess.com"]
[Source "ChessBase"]
[SourceQuality "1"]
[TimeControl "40/5400+30:1800+30"]

1. d4 {[%emt 0:00:00]} Nf6 {[%emt 0:00:00]} 2. c4 {[%emt 0:00:00]} e5 {[%emt 0:00:00]} 3. dxe5 {[%emt 0:04:25]} Ne4 {[%emt 0:00:50]} 4. a3 {[%emt 0:02:08]} Nc6 {[%emt 0:00:21]} 5. Nf3 {[%emt 0:00:32]} d6 {[%emt 0:03:09]} 6. exd6 {[%emt 0:00:57]} Bxd6 {[%emt 0:00:07]} 7. e3 {[%emt 0:01:29]} Qf6 {[%emt 0:01:01]} 8. Nbd2 {[%emt 0:04:39]} Bf5 {[%emt 0:02:40]} 9. Nxe4 {[%emt 0:04:47]} Bxe4 {[%emt 0:00:26]} 10. Bd3 {[%emt 0:01:06]} Bxd3 {[%emt 0:06:26]} 11. Qxd3 {[%emt 0:00:11]} O-O-O {[%emt 0:00:17]} 12. Qc2 {[%emt 0:02:17]} g5 13. c5 {[%emt 0:04:24]} Be7 {[%emt 0:08:07]} 14. Bd2 {[%emt 0:03:16]} Rhe8 15. Bc3 Qe6 {[%emt 0:18:53]} 16. b4 {[%emt 0:03:30]} g4 17. Nd2 {[%emt 0:03:21]} f5 {[%emt 0:18:46]} 18. O-O-O {[%emt 0:07:20]} Bf6 {[%emt 0:15:02]} 19. Nb3 {[%emt 0:04:42]} Bxc3 {[%emt 0:00:26]} 20. Qxc3 {[%emt 0:00:00]} Qe4 {[%emt 0:05:54]} 1/2-1/2

[Event "DEN-chT XtraCon 2018-19"]
[Site "Denmark"]
[Date "2018.12.09"]
[Round "4"]
[White "Krogh, Peter Ove"]
[Black "Christensen, Benny"]
[Result "1-0"]
[ECO "D53"]
[WhiteElo "1796"]
[BlackElo "1723"]
[Annotator "NA"]
[PlyCount "105"]
[EventDate "2018.10.27"]
[EventType "team-tourn"]
[EventCountry "DEN"]
[SourceTitle "playchess.com"]
[Source "ChessBase"]
[SourceQuality "1"]
[TimeControl "40/5400+30:1800+30"]

1. c4 {[%emt 0:00:00]} Nf6 {[%emt 0:00:00]} 2. d4 {[%emt 0:00:00]} d5 {[%emt 0:00:05]} 3. Nc3 {[%emt 0:00:39]} e6 {[%emt 0:01:05]} 4. Bg5 {[%emt 0:00:16]} Be7 {[%emt 0:00:35]} 5. e3 {[%emt 0:00:17]} c6 {[%emt 0:01:56]} 6. Nf3 {[%emt 0:00:16]} Nbd7 {[%emt 0:02:23]} 7. Qc2 {[%emt 0:00:45]} O-O {[%emt 0:03:57]} 8. b3 {[%emt 0:00:37]} Re8 {[%emt 0:01:10]} 9. Bd3 {[%emt 0:00:55]} h6 {[%emt 0:08:29]} 10. Bh4 {[%emt 0:02:05]} Bf8 {[%emt 0:02:34]} 11. O-O {[%emt 0:03:20]} b6 {[%emt 0:01:22]} 12. h3 {[%emt 0:00:35]} Bb7 {[%emt 0:00:43]} 13. e4 {[%emt 0:03:53]} e5 {[%emt 0:08:07]} 14. Nxe5 {[%emt 0:03:39]} Nxe5 {[%emt 0:00:13]} 15. dxe5 {[%emt 0:00:09]} Rxe5 {[%emt 0:00:13]} 16. exd5 {[%emt 0:03:52]} cxd5 {[%emt 0:00:47]} 17. Bg3 {[%emt 0:02:42]} Re8 {[%emt 0:00:39]} 18. Rad1 {[%emt 0:00:29]} Rc8 {[%emt 0:01:09]} 19. Bf5 {[%emt 0:00:42]} Rc5 {[%emt 0:06:11]} 20. Qd3 {[%emt 0:04:48]} Qa8 {[%emt 0:01:46]} 21. Na4 {[%emt 0:01:59]} dxc4 {[%emt 0:00:29]} 22. Qb1 {[%emt 0:01:24]} Ra5 {[%emt 0:02:45]} 23. Bc2 {[%emt 0:01:19]} Be4 {[%emt 0:01:33]} 24. Nc3 {[%emt 0:01:31]} Bxc2 {[%emt 0:01:05]} 25. Qxc2 {[%emt 0:00:12]} cxb3 {[%emt 0:00:06]} 26. Qxb3 {[%emt 0:00:50]} Qc6 {[%emt 0:02:06]} 27. a4 {[%emt 0:05:16]} Rc5 {[%emt 0:00:35]} 28. Nb5 {[%emt 0:01:20]} a6 {[%emt 0:01:24]} 29. Nd4 {[%emt 0:04:17]} Qb7 {[%emt 0:00:15]} 30. Rb1 {[%emt 0:00:38]} Ne4 {[%emt 0:02:13]} 31. Qxb6 {[%emt 0:01:35]} Qxb6 {[%emt 0:00:32]} 32. Rxb6 {[%emt 0:00:17]} Nxg3 {[%emt 0:00:15]} 33. fxg3 {[%emt 0:00:04]} Rc4 {[%emt 0:00:43]} 34. Nb3 {[%emt 0:01:57]} Rxa4 {[%emt 0:00:26]} 35. Kh2 {[%emt 0:00:31]} Ra2 {[%emt 0:00:36]} 36. Nc1 {[%emt 0:03:36]} Ra1 {[%emt 0:00:13]} 37. Rc6 {[%emt 0:01:05]} a5 {[%emt 0:02:14]} 38. Kg1 {[%emt 0:00:19]} a4 {[%emt 0:00:15]} 39. Kf2 {[%emt 0:00:34]} a3 {[%emt 0:00:18]} 40. Rd1 {[%emt 0:03:18]} Rb1 {[%emt 0:01:05]} 41. Rd2 {[%emt 0:32:29]} Reb8 {[%emt 0:31:38]} 42. Na2 {[%emt 0:04:19]} R1b2 {[%emt 0:00:07]} 43. Ke2 {[%emt 0:03:07]} g6 {[%emt 0:01:39]} 44. Rdc2 {[%emt 0:06:51]} R8b3 {[%emt 0:00:59]} 45. g4 {[%emt 0:00:38]} Kg7 {[%emt 0:05:23]} 46. Kd1 {[%emt 0:01:23]} Be7 {[%emt 0:00:37]} 47. Nc1 {[%emt 0:03:40]} Rb1 {[%emt 0:01:43]} 48. Ra2 {[%emt 0:01:15]} Bg5 {[%emt 0:00:51]} 49. Rac2 {[%emt 0:08:10]} R3b2 {[%emt 0:05:00]} 50. h4 {[%emt 0:02:06]} Bf6 {[%emt 0:03:23]} 51. Ra6 {[%emt 0:01:19]} Rxc2 {[%emt 0:00:19]} 52. Kxc2 {[%emt 0:00:13]} Bb2 {[%emt 0:00:31]} 53. Kxb1 {[%emt 0:00:41]} 1-0

[Event "DEN-chT XtraCon 2018-19"]
[Site "Denmark"]
[Date "2018.12.09"]
[Round "4"]
[White "Kuhnrich, Soren"]
[Black "Smidt-Nielsen, Henrik"]
[Result "0-1"]
[ECO "E85"]
[WhiteElo "1722"]
[BlackElo "1990"]
[Annotator "NA"]
[PlyCount "112"]
[EventDate "2018.10.27"]
[EventType "team-tourn"]
[EventCountry "DEN"]
[SourceTitle "playchess.com"]
[Source "ChessBase"]
[SourceQuality "1"]
[TimeControl "40/5400+30:1800+30"]

1. d4 {[%emt 0:00:00]} Nf6 {[%emt 0:00:00]} 2. c4 {[%emt 0:00:00]} g6 {[%emt 0:00:37]} 3. Nc3 {[%emt 0:06:18]} Bg7 {[%emt 0:01:21]} 4. e4 {[%emt 0:00:23]} d6 {[%emt 0:00:05]} 5. f3 {[%emt 0:00:29]} O-O {[%emt 0:00:16]} 6. Be3 {[%emt 0:00:17]} e5 {[%emt 0:03:24]} 7. Nge2 {[%emt 0:02:12]} Nc6 {[%emt 0:08:07]} 8. Qd2 {[%emt 0:03:34]} exd4 {[%emt 0:04:21]} 9. Nxd4 {[%emt 0:04:11]} Nxd4 {[%emt 0:05:12]} 10. Bxd4 {[%emt 0:02:29]} Be6 {[%emt 0:07:56]} 11. O-O-O {[%emt 0:11:21]} a6 {[%emt 0:07:32]} 12. g4 {[%emt 0:02:34]} b5 {[%emt 0:05:20]} 13. c5 {[%emt 0:04:21]} dxc5 {[%emt 0:03:04]} 14. Bxc5 {[%emt 0:02:12]} Qxd2+ {[%emt 0:00:57]} 15. Kxd2 {[%emt 0:00:27]} Rfd8+ {[%emt 0:06:16]} 16. Kc2 {[%emt 0:02:09]} Rxd1 {[%emt 0:05:51]} 17. Kxd1 {[%emt 0:01:35]} Nd7 {[%emt 0:00:31]} 18. Be7 {[%emt 0:09:32]} Re8 {[%emt 0:02:32]} 19. Bg5 {[%emt 0:07:39]} Nb6 {[%emt 0:08:16]} 20. a3 {[%emt 0:14:43]} Nc4 {[%emt 0:03:54]} 21. Kc2 {[%emt 0:05:54]} c6 {[%emt 0:06:04]} 22. Bxc4 {[%emt 0:02:44]} Bxc4 {[%emt 0:00:08]} 23. Re1 {[%emt 0:00:46]} a5 {[%emt 0:02:52]} 24. b3 {[%emt 0:00:55]} Be6 {[%emt 0:01:02]} 25. Rd1 {[%emt 0:01:59]} f6 {[%emt 0:03:45]} 26. Bf4 {[%emt 0:00:28]} Bf8 {[%emt 0:00:29]} 27. Bd6 {[%emt 0:07:13]} Rd8 {[%emt 0:04:13]} 28. Bxf8 {[%emt 0:00:13]} Rxd1 {[%emt 0:00:03]} 29. Nxd1 {[%emt 0:00:20]} Kxf8 30. Nb2 {[%emt 0:00:38]} Ke7 {[%emt 0:02:41]} 31. Nd3 {[%emt 0:00:49]} Kd6 {[%emt 0:00:16]} 32. h3 {[%emt 0:00:18]} g5 {[%emt 0:00:52]} 33. Kc3 {[%emt 0:00:25]} c5 {[%emt 0:00:50]} 34. a4 {[%emt 0:02:19]} b4+ {[%emt 0:03:44]} 35. Kc2 {[%emt 0:00:11]} c4 {[%emt 0:00:23]} 36. bxc4 {[%emt 0:00:24]} Bxc4 {[%emt 0:00:13]} 37. Nb2 {[%emt 0:00:26]} Be2 {[%emt 0:01:51]} 38. Kd2 {[%emt 0:00:05]} Bxf3 {[%emt 0:02:44]} 39. Ke3 {[%emt 0:00:30]} Bg2 {[%emt 0:00:19]} 40. Nc4+ {[%emt 0:00:11]} Kc5 {[%emt 0:00:40]} 41. Nxa5 {[%emt 0:30:03]} Bxh3 {[%emt 0:30:44]} 42. Nb3+ {[%emt 0:01:07]} Kb6 {[%emt 0:00:46]} 43. Kf3 {[%emt 0:00:19]} Bf1 {[%emt 0:00:18]} 44. e5 {[%emt 0:00:16]} fxe5 {[%emt 0:00:24]} 45. Ke4 {[%emt 0:00:02]} Bc4 {[%emt 0:00:31]} 46. Nd2 {[%emt 0:00:03]} Be6 {[%emt 0:00:21]} 47. Nf3 {[%emt 0:02:12]} Bxg4 {[%emt 0:00:28]} 48. Nxe5 {[%emt 0:01:16]} Bd1 {[%emt 0:00:26]} 49. Nc4+ {[%emt 0:00:22]} Kc5 {[%emt 0:00:43]} 50. Ne3 {[%emt 0:02:16]} Bxa4 {[%emt 0:00:33]} 51. Kd3 {[%emt 0:00:30]} h5 52. Ng2 {[%emt 0:01:09]} Bb5+ {[%emt 0:01:07]} 53. Kc2 {[%emt 0:00:15]} h4 {[%emt 0:00:13]} 54. Ne3 {[%emt 0:00:08]} h3 {[%emt 0:00:19]} 55. Ng4 {[%emt 0:00:07]} Bd7 {[%emt 0:00:15]} 56. Ne3 {[%emt 0:00:13]} h2 {[%emt 0:00:24]} 0-1

[Event "DEN-chT XtraCon 2018-19"]
[Site "Denmark"]
[Date "2018.12.09"]
[Round "4"]
[White "Holbæk III 5Rasmussen, Gudmund"]
[Black "Carlsen, Erik"]
[Result "0-1"]
[ECO "A30"]
[WhiteElo "1589"]
[BlackElo "1890"]
[Annotator "NA"]
[PlyCount "50"]
[EventDate "2018.10.27"]
[EventType "team-tourn"]
[EventCountry "DEN"]
[SourceTitle "playchess.com"]
[Source "ChessBase"]
[SourceQuality "1"]
[TimeControl "40/5400+30:1800+30"]

1. c4 {[%emt 0:00:00]} c5 {[%emt 0:00:00]} 2. d3 {[%emt 0:00:15]} Nf6 {[%emt 0:00:00]} 3. Nf3 {[%emt 0:00:44]} d5 {[%emt 0:00:21]} 4. cxd5 {[%emt 0:02:30]} Nxd5 {[%emt 0:00:44]} 5. e4 {[%emt 0:00:39]} Nb6 {[%emt 0:00:24]} 6. Nc3 {[%emt 0:02:57]} Nc6 {[%emt 0:00:13]} 7. Be2 {[%emt 0:02:45]} e5 {[%emt 0:01:28]} 8. O-O {[%emt 0:07:00]} Be7 {[%emt 0:01:22]} 9. a3 {[%emt 0:20:37]} O-O {[%emt 0:02:00]} 10. h3 {[%emt 0:08:13]} Be6 {[%emt 0:00:50]} 11. Qd2 {[%emt 0:09:08]} f6 {[%emt 0:01:46]} 12. Bd1 {[%emt 0:04:28]} Qd7 {[%emt 0:04:53]} 13. Ne1 {[%emt 0:00:25]} Rfd8 {[%emt 0:05:08]} 14. b3 {[%emt 0:05:06]} Rac8 {[%emt 0:13:57]} 15. Rb1 {[%emt 0:00:28]} Qe8 {[%emt 0:01:54]} 16. Qe3 {[%emt 0:06:16]} Rc7 {[%emt 0:04:29]} 17. f4 {[%emt 0:04:18]} exf4 {[%emt 0:04:27]} 18. Rxf4 {[%emt 0:02:08]} Rcd7 {[%emt 0:02:20]} 19. Bg4 {[%emt 0:00:52]} Bxg4 {[%emt 0:01:59]} 20. Rxg4 {[%emt 0:00:21]} Ne5 {[%emt 0:00:36]} 21. Rg3 {[%emt 0:00:14]} Nxd3 {[%emt 0:06:31]} 22. Qh6 {[%emt 0:00:41]} Qf7 {[%emt 0:00:56]} 23. Qe3 {[%emt 0:01:45]} c4 {[%emt 0:02:15]} 24. Kf1 {[%emt 0:03:54]} Bc5 {[%emt 0:05:31]} 25. Qh6 {[%emt 0:03:12]} Bf2 0-1

[Event "DEN-chT XtraCon 2018-19"]
[Site "Denmark"]
[Date "2018.12.09"]
[Round "4"]
[White "Dalgaard, Mads"]
[Black "Meskenas, Paulius"]
[Result "0-1"]
[ECO "D00"]
[WhiteElo "1303"]
[BlackElo "1763"]
[Annotator "NA"]
[PlyCount "46"]
[EventDate "2018.10.27"]
[EventType "team-tourn"]
[EventCountry "DEN"]
[SourceTitle "playchess.com"]
[Source "ChessBase"]
[SourceQuality "1"]
[TimeControl "40/5400+30:1800+30"]

1. d4 {[%emt 0:00:00]} d5 {[%emt 0:00:00]} 2. Bf4 {[%emt 0:00:22]} Bf5 {[%emt 0:00:00]} 3. Nc3 {[%emt 0:01:34]} a6 {[%emt 0:03:06]} 4. g3 {[%emt 0:02:32]} Nc6 {[%emt 0:00:47]} 5. a3 {[%emt 0:00:34]} Nf6 {[%emt 0:00:26]} 6. Bg2 {[%emt 0:02:40]} e6 {[%emt 0:00:29]} 7. e3 {[%emt 0:02:51]} Bd6 {[%emt 0:01:27]} 8. Nge2 {[%emt 0:01:48]} Bg4 {[%emt 0:00:37]} 9. h3 {[%emt 0:01:52]} Bh5 {[%emt 0:00:14]} 10. g4 {[%emt 0:02:19]} Bg6 {[%emt 0:00:57]} 11. Bg5 {[%emt 0:01:14]} Be7 {[%emt 0:01:43]} 12. Bxf6 {[%emt 0:08:00]} Bxf6 {[%emt 0:00:44]} 13. Bf3 {[%emt 0:01:09]} b5 {[%emt 0:02:17]} 14. b4 {[%emt 0:01:22]} O-O {[%emt 0:00:54]} 15. h4 {[%emt 0:00:18]} Bxh4 {[%emt 0:00:31]} 16. Nf4 {[%emt 0:03:15]} Bg5 {[%emt 0:02:56]} 17. Nxg6 {[%emt 0:02:40]} hxg6 {[%emt 0:01:30]} 18. Qe2 {[%emt 0:01:33]} f5 {[%emt 0:00:27]} 19. O-O-O {[%emt 0:02:37]} Qf6 {[%emt 0:00:22]} 20. a4 {[%emt 0:04:48]} Nxd4 {[%emt 0:00:46]} 21. Qd3 {[%emt 0:02:13]} Nxf3 {[%emt 0:00:15]} 22. axb5 {[%emt 0:00:30]} axb5 {[%emt 0:00:07]} 23. Nxb5 {[%emt 0:01:48]} Qa1# {[%emt 0:00:02]} 0-1

[Event "DEN-chT XtraCon 2018-19"]
[Site "Denmark"]
[Date "2019.01.12"]
[Round "5"]
[White "Glud, Jakob Vang"]
[Black "Mikkelsen, Nikolaj"]
[Result "1/2-1/2"]
[ECO "A10"]
[WhiteElo "2546"]
[BlackElo "2458"]
[Annotator "ChessBase"]
[PlyCount "41"]
[EventDate "2018.10.27"]
[EventType "team-tourn"]
[EventCountry "DEN"]
[SourceTitle "playchess.com"]
[Source "ChessBase"]
[SourceQuality "1"]
[TimeControl "40/5400+30:1800+30"]

1. c4 {[%emt 0:00:00]} g6 {[%emt 0:02:11]} 2. g3 {[%emt 0:01:09]} Bg7 {[%emt 0:00:09]} 3. Bg2 {[%emt 0:00:08]} e5 {[%emt 0:06:37]} 4. Nc3 {[%emt 0:00:43]} d6 {[%emt 0:00:43]} 5. e4 {[%emt 0:02:25]} Nf6 {[%emt 0:01:06]} 6. Nge2 {[%emt 0:01:16]} O-O {[%emt 0:00:16]} 7. O-O {[%emt 0:01:38]} c6 {[%emt 0:00:18]} 8. d3 {[%emt 0:05:28]} a6 {[%emt 0:00:20]} 9. Be3 {[%emt 0:02:04]} b5 {[%emt 0:04:08]} 10. h3 {[%emt 0:02:19]} b4 {[%emt 0:42:42]} 11. Nb1 {[%emt 0:01:36]} Nbd7 {[%emt 0:03:40]} 12. Nd2 {[%emt 0:04:25]} Bb7 {[%emt 0:04:22]} 13. a3 {[%emt 0:04:52]} a5 {[%emt 0:00:50]} 14. axb4 {[%emt 0:00:11]} axb4 {[%emt 0:00:06]} 15. Rxa8 {[%emt 0:00:08]} Qxa8 {[%emt 0:01:04]} 16. Nb3 {[%emt 0:04:28]} d5 {[%emt 0:05:24]} 17. Qd2 {[%emt 0:06:15]} dxc4 {[%emt 0:04:27]} 18. Ra1 {[%emt 0:01:27]} Qc8 {[%emt 0:00:56]} 19. dxc4 {[%emt 0:00:52]} c5 {[%emt 0:00:36]} 20. Qc2 {[%emt 0:03:13]} Qc7 {[%emt 0:03:10]} 21. f3 {[%emt 0:03:19]} 1/2-1/2

[Event "DEN-chT XtraCon 2018-19"]
[Site "Denmark"]
[Date "2019.01.12"]
[Round "5"]
[White "Ochsner, Bjorn Moller"]
[Black "Aagaard, Jacob"]
[Result "1/2-1/2"]
[ECO "B30"]
[WhiteElo "2447"]
[BlackElo "2470"]
[Annotator "ChessBase"]
[PlyCount "38"]
[EventDate "2018.10.27"]
[EventType "team-tourn"]
[EventCountry "DEN"]
[SourceTitle "playchess.com"]
[Source "ChessBase"]
[SourceQuality "1"]
[TimeControl "40/5400+30:1800+30"]

1. e4 {[%emt 0:00:00]} c5 {[%emt 0:00:00]} 2. Nf3 {[%emt 0:00:00]} Nc6 {[%emt 0:00:00]} 3. Bb5 {[%emt 0:00:21]} Na5 {[%emt 0:02:02]} 4. c3 {[%emt 0:04:30]} e6 {[%emt 0:03:24]} 5. O-O {[%emt 0:04:29]} a6 {[%emt 0:02:05]} 6. Be2 {[%emt 0:14:48]} b5 {[%emt 0:06:01]} 7. d4 {[%emt 0:05:22]} cxd4 {[%emt 0:02:21]} 8. cxd4 {[%emt 0:00:08]} Bb7 {[%emt 0:01:43]} 9. Bd3 {[%emt 0:00:49]} d6 {[%emt 0:06:23]} 10. Qe2 {[%emt 0:04:46]} Nf6 {[%emt 0:02:48]} 11. Nbd2 {[%emt 0:00:55]} Be7 {[%emt 0:00:39]} 12. Rd1 {[%emt 0:00:34]} Nd7 {[%emt 0:08:19]} 13. Nf1 {[%emt 0:07:55]} O-O {[%emt 0:01:24]} 14. Ng3 {[%emt 0:01:06]} Re8 {[%emt 0:05:20]} 15. Bf4 {[%emt 0:11:11]} Nc6 {[%emt 0:09:28]} 16. Be3 {[%emt 0:15:19]} g6 {[%emt 0:03:08]} 17. a4 {[%emt 0:01:44]} bxa4 {[%emt 0:04:05]} 18. Rxa4 {[%emt 0:00:18]} Nb6 {[%emt 0:00:01]} 19. Raa1 {[%emt 0:00:47]} Nb4 {[%emt 0:00:04]} 1/2-1/2

[Event "DEN-chT XtraCon 2018-19"]
[Site "Denmark"]
[Date "2019.01.12"]
[Round "5"]
[White "Hansen, Mads"]
[Black "Laursen, Niels Norskov"]
[Result "1-0"]
[ECO "B08"]
[WhiteElo "2403"]
[BlackElo "2276"]
[Annotator "NA"]
[PlyCount "85"]
[EventDate "2018.10.27"]
[EventType "team-tourn"]
[EventCountry "DEN"]
[SourceTitle "playchess.com"]
[Source "ChessBase"]
[SourceQuality "1"]
[TimeControl "40/5400+30:1800+30"]

1. e4 {[%emt 0:00:00]} d6 {[%emt 0:00:00]} 2. d4 {[%emt 0:00:00]} Nf6 {[%emt 0:00:00]} 3. Nc3 {[%emt 0:00:00]} g6 {[%emt 0:00:00]} 4. Nf3 {[%emt 0:00:07]} Bg7 {[%emt 0:00:07]} 5. Be2 {[%emt 0:00:05]} O-O {[%emt 0:00:22]} 6. O-O {[%emt 0:00:06]} Bg4 {[%emt 0:00:45]} 7. Be3 {[%emt 0:00:30]} Nc6 {[%emt 0:00:42]} 8. d5 {[%emt 0:00:13]} Bxf3 {[%emt 0:00:48]} 9. Bxf3 {[%emt 0:00:03]} Ne5 {[%emt 0:00:07]} 10. Be2 {[%emt 0:00:04]} c6 {[%emt 0:00:35]} 11. f4 {[%emt 0:00:05]} Ned7 {[%emt 0:00:11]} 12. dxc6 {[%emt 0:00:04]} bxc6 {[%emt 0:00:05]} 13. Rb1 {[%emt 0:00:05]} Qc7 {[%emt 0:09:03]} 14. Qd2 {[%emt 0:03:44]} Rab8 {[%emt 0:03:56]} 15. a3 {[%emt 0:06:27]} Nb6 {[%emt 0:06:01]} 16. Rfd1 {[%emt 0:06:18]} d5 {[%emt 0:04:32]} 17. e5 {[%emt 0:01:10]} Nfd7 {[%emt 0:02:45]} 18. b4 {[%emt 0:05:27]} e6 {[%emt 0:01:38]} 19. Qe1 {[%emt 0:03:46]} f6 {[%emt 0:03:09]} 20. exf6 {[%emt 0:04:14]} Bxf6 {[%emt 0:00:27]} 21. a4 {[%emt 0:34:20]} Rbe8 {[%emt 0:10:43]} 22. a5 {[%emt 0:01:05]} Nc8 {[%emt 0:00:32]} 23. Qd2 {[%emt 0:01:50]} Nd6 {[%emt 0:10:40]} 24. Kh1 {[%emt 0:05:15]} Kh8 {[%emt 0:03:06]} 25. Bd4 {[%emt 0:02:14]} Bxd4 {[%emt 0:09:59]} 26. Qxd4+ {[%emt 0:00:01]} e5 {[%emt 0:02:51]} 27. fxe5 {[%emt 0:00:04]} Nf5 {[%emt 0:00:49]} 28. Qd2 {[%emt 0:01:27]} Rxe5 {[%emt 0:06:09]} 29. Rf1 {[%emt 0:03:26]} Nf6 {[%emt 0:03:41]} 30. Bf3 {[%emt 0:05:03]} Ne3 {[%emt 0:01:39]} 31. Rf2 {[%emt 0:01:16]} Qe7 {[%emt 0:02:39]} 32. h3 {[%emt 0:04:42]} g5 {[%emt 0:03:06]} 33. Kg1 {[%emt 0:02:07]} Rg8 {[%emt 0:08:56]} 34. Qd4 {[%emt 0:03:22]} g4 {[%emt 0:01:56]} 35. hxg4 {[%emt 0:02:46]} Nfxg4 {[%emt 0:00:22]} 36. Re1 {[%emt 0:03:05]} Qg7 {[%emt 0:04:53]} 37. Bxg4 {[%emt 0:00:57]} Nxg4 {[%emt 0:00:13]} 38. Rxe5 {[%emt 0:00:53]} Nxe5 {[%emt 0:00:46]} 39. Kf1 {[%emt 0:00:59]} Qg3 {[%emt 0:00:41]} 40. Ne2 {[%emt 0:01:07]} Qh2 {[%emt 0:00:18]} 41. Ng1 {[%emt 0:08:22]} Rg4 {[%emt 0:07:10]} 42. Qxa7 {[%emt 0:03:34]} Nf3 {[%emt 0:05:03]} 43. Nxf3 {[%emt 0:00:33]} 1-0